[Event "FIDE World Rapid-ch Open 2018"]
[White "Danielyan, Vahe"]
[Black "Hirneise, Tobias"]
[Site "St. Petersburg"]
[Round "6.96"]
[Annotator "ChessBase"]
[Result "0-1"]
[Date "2018.12.27"]
[WhiteElo "2220"]
[BlackElo "2464"]
[PlyCount "148"]
[TimeControl "900+10"]

1. Nf3 {[%emt 0:0:0]} d5 {[%emt 0:0:0]} 2. g3 {[%emt 0:0:0]} Nf6 {[%emt 0:0:10]
} 3. Bg2 {[%emt 0:0:0]} e6 {[%emt 0:0:13]} 4. 0-0 {[%emt 0:0:0]} Be7 {[%emt 0:0:1]} 5. d3 {[%emt 0:0:7]} c5 {[%emt 0:0:12]} 6. Nbd2 {[%emt 0:0:2]
} Nc6 {[%emt 0:0:1]} 7. e4 {[%emt 0:0:1]} 0-0 {[%emt 0:0:9]
} 8. Re1 {[%emt 0:0:2]} b5 {[%emt 0:0:15]} 9. a4 {[%emt 0:0:1]} b4 {[%emt 0:0:3]
} 10. e5 {[%emt 0:0:18]} Nd7 {[%emt 0:0:6]} 11. Nf1 {[%emt 0:0:0]} Qc7 {[%emt 0:0:12]} 12. Bf4 {[%emt 0:0:2]} Bb7 {[%emt 0:0:17]} 13. h4 {[%emt 0:0:1]} Rfc8 {[%emt 0:0:6]} 14. h5 {[%emt 0:0:3]} h6 {[%emt 0:0:0]} 15. N1h2 {[%emt 0:0:1]} Qd8 {[%emt 0:0:37]} 16. Ng4 {[%emt 0:0:15]} Bf8 {[%emt 0:0:14]} 17. Qd2 {[%emt 0:0:38]} Kh7 {[%emt 0:1:54]} 18. c3 {[%emt 0:1:42]
} bxc3 {[%emt 0:0:12]} 19. bxc3 {[%emt 0:0:1]} Rab8 {[%emt 0:0:0]} 20. Nh4 {[%emt 0:1:17]} Na5 {[%emt 0:0:37]} 21. Rab1 {[%emt 0:0:28]} Bc6 {[%emt 0:0:32]} 22. Qc2 {[%emt 0:0:9]} Kh8 {[%emt 0:0:24]} 23. c4 {[%emt 0:0:53]
} d4 {[%emt 0:0:49]} 24. Bxc6 {[%emt 0:1:32]} Nxc6 {[%emt 0:0:0]} 25. Qe2 {[%emt 0:0:15]} Rxb1 {[%emt 0:1:12]} 26. Rxb1 {[%emt 0:0:1]} Rb8 {[%emt 0:0:0]} 27. Rxb8 {[%emt 0:0:19]} Qxb8 {[%emt 0:0:7]} 28. Qf3 {[%emt 0:0:8]
} Qb1+ {[%emt 0:0:48]} 29. Kh2 {[%emt 0:0:12]} Nd8 {[%emt 0:0:0]} 30. a5 {[%emt 0:0:1]} Qb7 {[%emt 0:0:9]} 31. Qd1 {[%emt 0:1:42]} Nc6 {[%emt 0:0:12]} 32. a6 {[%emt 0:5:5]} Qxa6 {[%emt 0:0:7]} 33. Qf3 {[%emt 0:0:1]
} Nd8 {[%emt 0:1:12]} 34. Bd2 {[%emt 0:0:8]} Qb7 {[%emt 0:0:0]} 35. Qf4 {[%emt 0:0:15]} Qc7 {[%emt 0:0:13]} 36. Qe4 {[%emt 0:1:4]} Nc6 {[%emt 0:2:8]} 37. f4 {[%emt 0:0:44]} Be7 {[%emt 0:0:23]} 38. Nf3 {[%emt 0:0:0]} Nd8 {[%emt 0:0:58]} 39. f5 {[%emt 0:0:12]} exf5 {[%emt 0:0:29]} 40. Qxf5 {[%emt 0:0:1]} Qc6 {[%emt 0:0:8]} 41. Qf4 {[%emt 0:2:30]} Qe6 {[%emt 0:0:47]
} 42. Qe4 {[%emt 0:0:4]} Nc6 {[%emt 0:0:19]} 43. Kg2 {[%emt 0:0:0]} a5 {[%emt 0:0:22]} 44. Bc1 {[%emt 0:0:23]} a4 {[%emt 0:0:0]} 45. Ba3 {[%emt 0:0:1]} Bd8 {[%emt 0:0:36]} 46. Nf2 {[%emt 0:0:21]} Bc7 {[%emt 0:0:54]
} 47. Nh3 {[%emt 0:0:6]} Bxe5 {[%emt 0:0:14]} 48. Nhg5 {[%emt 0:0:8]
} hxg5 {[%emt 0:0:17]} 49. Nxg5 {[%emt 0:0:5]} f5 {[%emt 0:0:0]} 50. Qh4 {[%emt 0:0:22]} Qe7 {[%emt 0:1:14]} 51. h6 {[%emt 0:0:5]} g6 {[%emt 0:0:1]
} 52. Kf1 {[%emt 0:0:10]} Bf6 {[%emt 0:0:5]} 53. Qh1 {[%emt 0:0:0]} Bxg5 54. Qxc6 Kh7 {[%emt 0:0:55]} 55. Qxa4 {[%emt 0:0:9]} Bxh6 {[%emt 0:0:7]
} 56. Qc6 {[%emt 0:0:3]} Bf8 {[%emt 0:0:17]} 57. Bc1 {[%emt 0:0:0]} Ne5 {[%emt 0:0:17]} 58. Qh1+ {[%emt 0:0:5]} Kg8 {[%emt 0:0:3]} 59. Qd5+ {[%emt 0:0:3]} Nf7 {[%emt 0:0:4]} 60. Bf4 {[%emt 0:0:8]} Qf6 {[%emt 0:0:23]
} 61. Qb7 {[%emt 0:0:21]} Bd6 {[%emt 0:0:9]} 62. Qc6 {[%emt 0:0:0]} Kg7 {[%emt 0:0:15]} 63. Bd2 {[%emt 0:0:11]} f4 {[%emt 0:0:13]} 64. gxf4 {[%emt 0:0:7]} g5 {[%emt 0:0:15]} 65. Ke2 {[%emt 0:0:7]} gxf4 {[%emt 0:0:2]
} 66. Qg2+ {[%emt 0:0:4]} Ng5 {[%emt 0:0:3]} 67. Qb7+ {[%emt 0:0:1]
} Kg6 {[%emt 0:0:1]} 68. Qc8 {[%emt 0:0:3]} Qe6+ {[%emt 0:0:0]} 69. Qxe6+ {[%emt 0:0:5]} Nxe6 {[%emt 0:0:1]} 70. Kf3 {[%emt 0:0:0]} Kf5 {[%emt 0:0:1]} 71. Be1 {[%emt 0:0:2]} Ng5+ {[%emt 0:0:2]} 72. Ke2 {[%emt 0:0:0]
} f3+ {[%emt 0:0:4]} 73. Kf2 {[%emt 0:0:3]} Kg4 {[%emt 0:0:0]} 74. Bd2 {[%emt 0:0:1]} Bf4 {[%emt 0:0:6]} 0-1

[Event "FIDE World Rapid-ch Open 2018"]
[White "Masrahi, Abdulrahman A"]
[Black "Zubritskiy, Artyom"]
[Site "St. Petersburg"]
[Round "6.97"]
[Annotator "NA"]
[Result "0-1"]
[Date "2018.12.27"]
[WhiteElo "1903"]
[BlackElo "2442"]
[PlyCount "76"]
[TimeControl "900+10"]

1. d4 {[%emt 0:0:0]} d5 {[%emt 0:0:0]} 2. Bf4 {[%emt 0:0:0]} Nf6 {[%emt 0:0:0]
} 3. e3 {[%emt 0:0:0]} c5 {[%emt 0:0:2]} 4. c3 {[%emt 0:0:0]} Nc6 {[%emt 0:0:9]} 5. Nd2 {[%emt 0:0:0]} g6 {[%emt 0:0:51]} 6. Ngf3 {[%emt 0:0:21]
} Bg7 {[%emt 0:0:2]} 7. Be2 {[%emt 0:0:25]} 0-0 {[%emt 0:0:0]} 8. 0-0 {[%emt 0:0:18]} Nh5 {[%emt 0:1:9]} 9. dxc5 {[%emt 0:0:26]} Nxf4 {[%emt 0:3:47]} 10. exf4 {[%emt 0:0:4]} Qc7 {[%emt 0:3:26]} 11. g3 {[%emt 0:2:38]
} Rd8 {[%emt 0:0:10]} 12. Nb3 {[%emt 0:0:4]} b6 {[%emt 0:0:0]} 13. cxb6 {[%emt 0:1:40]} Qxb6 {[%emt 0:0:3]} 14. Nfd4 {[%emt 0:1:51]} Rb8 {[%emt 0:3:57]} 15. Qd2 {[%emt 0:2:6]} Bd7 {[%emt 0:1:4]} 16. Rab1 {[%emt 0:1:4]
} e6 {[%emt 0:0:5]} 17. Nxc6 {[%emt 0:1:0]} Bxc6 {[%emt 0:0:0]} 18. Nd4 {[%emt 0:0:1]} Bd7 {[%emt 0:0:18]} 19. h4 {[%emt 0:1:1]} Qa5 {[%emt 0:0:28]} 20. a3 {[%emt 0:0:9]} Qc7 {[%emt 0:0:7]} 21. b4 {[%emt 0:0:0]} Rbc8 {[%emt 0:0:34]} 22. Rbc1 {[%emt 0:0:15]} Qb6 {[%emt 0:0:2]} 23. h5 {[%emt 0:1:0]} Rc7 {[%emt 0:0:26]} 24. hxg6 {[%emt 0:0:14]} hxg6 {[%emt 0:0:2]
} 25. Nb3 {[%emt 0:1:11]} Rdc8 {[%emt 0:0:3]} 26. Nc5 {[%emt 0:0:8]
} Bc6 {[%emt 0:0:7]} 27. Ba6 {[%emt 0:0:26]} Rd8 {[%emt 0:0:0]} 28. a4 {[%emt 0:0:17]} Bxa4 {[%emt 0:0:12]} 29. Nxa4 {[%emt 0:0:42]} Qxa6 {[%emt 0:0:0]} 30. Nc5 {[%emt 0:0:2]} Qc4 {[%emt 0:0:2]} 31. Kg2 {[%emt 0:0:34]
} a5 {[%emt 0:0:22]} 32. Rh1 {[%emt 0:0:43]} Ra8 {[%emt 0:0:0]} 33. Rh4 {[%emt 0:0:6]} d4 {[%emt 0:0:21]} 34. cxd4 {[%emt 0:0:11]} Qd5+ {[%emt 0:0:1]} 35. Kg1 {[%emt 0:0:29]} axb4 {[%emt 0:0:19]} 36. Rh2 {[%emt 0:0:44]
} Qxd4 {[%emt 0:0:9]} 37. Qxd4 {[%emt 0:0:10]} Bxd4 {[%emt 0:0:0]} 38. Nb3 {[%emt 0:0:3]} Rxc1+ {[%emt 0:0:1]} 0-1

[Event "FIDE World Rapid-ch Open 2018"]
[White "Tsoi, Dmitry"]
[Black "Alsulaymi, Abdullah M"]
[Site "St. Petersburg"]
[Round "6.98"]
[Annotator "NA"]
[Result "1-0"]
[Date "2018.12.27"]
[WhiteElo "2424"]
[BlackElo "1833"]
[PlyCount "77"]
[TimeControl "900+10"]

1. Nf3 {[%emt 0:0:0]} Nf6 {[%emt 0:0:0]} 2. g3 {[%emt 0:0:0]} g6 {[%emt 0:0:0]
} 3. Bg2 {[%emt 0:0:0]} Bg7 {[%emt 0:0:3]} 4. 0-0 {[%emt 0:0:0]} 0-0 {[%emt 0:0:4]} 5. c4 {[%emt 0:0:0]} d6 {[%emt 0:0:40]} 6. Nc3 {[%emt 0:0:2]} c5 {[%emt 0:1:27]} 7. d3 {[%emt 0:0:4]} Nc6 {[%emt 0:0:17]
} 8. a3 {[%emt 0:0:2]} a6 {[%emt 0:0:9]} 9. Rb1 {[%emt 0:0:2]} Bd7 {[%emt 0:1:45]
} 10. Bg5 {[%emt 0:0:4]} h6 {[%emt 0:0:15]} 11. Bd2 {[%emt 0:0:0]} Kh8 {[%emt 0:1:59]} 12. b4 {[%emt 0:0:8]} cxb4 {[%emt 0:0:41]} 13. axb4 {[%emt 0:0:3]} Rb8 {[%emt 0:2:41]} 14. b5 {[%emt 0:0:1]} axb5 {[%emt 0:0:14]
} 15. Nxb5 {[%emt 0:0:4]} Ng4 {[%emt 0:1:46]} 16. Bc3 {[%emt 0:0:29]
} Nce5 {[%emt 0:0:10]} 17. Qd2 {[%emt 0:0:12]} Bxb5 {[%emt 0:0:0]} 18. Rxb5 {[%emt 0:0:6]} g5 {[%emt 0:0:45]} 19. Nxe5 {[%emt 0:0:14]} Nxe5 {[%emt 0:0:55]} 20. f4 {[%emt 0:0:7]} gxf4 {[%emt 0:0:11]} 21. gxf4 {[%emt 0:0:3]
} Ng4 {[%emt 0:0:20]} 22. Bxg7+ {[%emt 0:0:19]} Kxg7 {[%emt 0:0:0]} 23. Rf3 {[%emt 0:2:0]} Rg8 {[%emt 0:0:41]} 24. Rg3 {[%emt 0:0:1]} Kf8 {[%emt 0:0:0]} 25. f5 {[%emt 0:0:17]} Ra8 {[%emt 0:0:40]} 26. h3 {[%emt 0:0:57]
} Ra1+ {[%emt 0:0:12]} 27. Bf1 {[%emt 0:0:1]} Rxf1+ {[%emt 0:0:0]} 28. Kxf1 {[%emt 0:0:3]} Nh2+ {[%emt 0:0:1]} 29. Kg2 {[%emt 0:0:4]
} Rxg3+ {[%emt 0:0:2]} 30. Kxh2 {[%emt 0:0:5]} Rg5 {[%emt 0:0:11]} 31. Qf4 {[%emt 0:0:52]} Qa8 {[%emt 0:0:20]} 32. h4 {[%emt 0:0:9]} Rg8 {[%emt 0:0:0]} 33. Qxh6+ {[%emt 0:0:35]} Ke8 {[%emt 0:0:1]} 34. Qh7 {[%emt 0:0:3]} Kd7 {[%emt 0:0:8]} 35. Qxf7 {[%emt 0:0:4]} b6 {[%emt 0:0:59]} 36. Qe6+ {[%emt 0:0:3]
} Kc7 {[%emt 0:0:30]} 37. Qxe7+ {[%emt 0:0:5]} Kc8 {[%emt 0:0:0]} 38. Qe6+ {[%emt 0:0:2]} Kc7 {[%emt 0:0:1]} 39. Qf7+ {[%emt 0:0:2]
} 1-0

[Event "FIDE World Rapid-ch Open 2018"]
[White "Borisenko, Viacheslav"]
[Black "Ahmed Hassan Abdillahi"]
[Site "St. Petersburg"]
[Round "6.99"]
[Annotator "NA"]
[Result "1-0"]
[Date "2018.12.27"]
[WhiteElo "2289"]
[BlackElo "1570"]
[PlyCount "65"]
[TimeControl "900+10"]

1. e4 {[%emt 0:0:0]} c5 {[%emt 0:0:26]} 2. Nf3 {[%emt 0:0:0]} g6 {[%emt 0:0:0]} 3. c3 {[%emt 0:0:24]} Bg7 {[%emt 0:0:3]} 4. d4 {[%emt 0:0:1]} cxd4 {[%emt 0:0:2]} 5. cxd4 {[%emt 0:0:1]} Nf6 {[%emt 0:0:5]} 6. Nc3 {[%emt 0:0:0]} Qa5 {[%emt 0:0:15]} 7. Bd2 {[%emt 0:0:13]} Qd8 {[%emt 0:0:27]} 8. e5 {[%emt 0:0:24]} Ng8 {[%emt 0:0:5]} 9. Bc4 {[%emt 0:0:9]} e6 {[%emt 0:0:0]} 10. Ne4 {[%emt 0:0:34]} d5 {[%emt 0:0:23]} 11. Nd6+ {[%emt 0:0:29]} Qxd6 {[%emt 0:0:24]} 12. exd6 {[%emt 0:0:2]} dxc4 {[%emt 0:0:1]} 13. 0-0 {[%emt 0:0:20]
} Nf6 {[%emt 0:0:5]} 14. Rc1 {[%emt 0:0:11]} b5 {[%emt 0:0:0]} 15. b3 {[%emt 0:0:2]} Bd7 {[%emt 0:0:9]} 16. bxc4 {[%emt 0:0:2]} bxc4 {[%emt 0:0:2]} 17. Rxc4 {[%emt 0:0:3]} 0-0 {[%emt 0:0:3]} 18. Rc7 {[%emt 0:0:4]
} Bb5 {[%emt 0:0:7]} 19. Re1 {[%emt 0:0:6]} Nd5 {[%emt 0:0:0]} 20. Qb3 {[%emt 0:0:3]} a6 {[%emt 0:0:33]} 21. a4 {[%emt 0:0:4]} Bd7 {[%emt 0:0:47]
} 22. Ne5 {[%emt 0:0:23]} Bxe5 {[%emt 0:0:24]} 23. dxe5 {[%emt 0:0:2]
} Nxc7 {[%emt 0:0:5]} 24. dxc7 {[%emt 0:0:6]} Nc6 {[%emt 0:0:0]} 25. Bg5 {[%emt 0:0:4]} Rfc8 {[%emt 0:1:14]} 26. Bf6 {[%emt 0:0:6]} Rxc7 {[%emt 0:1:37]} 27. Qe3 {[%emt 0:0:7]} Ne7 {[%emt 0:0:43]} 28. Bxe7 {[%emt 0:0:3]
} f5 {[%emt 0:1:56]} 29. exf6 {[%emt 0:0:3]} Bc8 {[%emt 0:0:0]} 30. Qh6 {[%emt 0:0:4]} Rxe7 {[%emt 0:0:9]} 31. fxe7 {[%emt 0:0:2]} Bd7 {[%emt 0:0:2]} 32. Rd1 {[%emt 0:0:4]} Rc8 {[%emt 0:0:11]} 33. Rxd7 {[%emt 0:0:5]
} 1-0

[Event "FIDE World Rapid-ch Open 2018"]
[White "Al Thebaiti, Ahmed M"]
[Black "Vishnu Prasanna. V"]
[Site "St. Petersburg"]
[Round "6.100"]
[Annotator "ChessBase"]
[Result "0-1"]
[Date "2018.12.27"]
[WhiteElo "1976"]
[BlackElo "2518"]
[PlyCount "86"]
[TimeControl "900+10"]

1. d4 {[%emt 0:0:0]} Nf6 {[%emt 0:0:0]} 2. Bf4 {[%emt 0:0:0]} e6 {[%emt 0:0:9]
} 3. e3 {[%emt 0:0:0]} c5 {[%emt 0:0:2]} 4. c3 {[%emt 0:0:0]} Nc6 {[%emt 0:0:2]} 5. Nd2 {[%emt 0:0:5]} d5 {[%emt 0:0:7]} 6. Bd3 {[%emt 0:0:12]
} Be7 {[%emt 0:0:4]} 7. h3 {[%emt 0:0:14]} Bd6 {[%emt 0:0:9]
} 8. Ne2 {[%emt 0:1:22]} e5 {[%emt 0:0:32]} 9. dxe5 {[%emt 0:0:18]} Nxe5 {[%emt 0:0:2]
} 10. Bc2 {[%emt 0:0:22]} 0-0 {[%emt 0:0:10]} 11. 0-0 {[%emt 0:0:0]} Re8 {[%emt 0:0:7]} 12. Re1 {[%emt 0:1:37]} b6 {[%emt 0:0:9]} 13. Ng3 {[%emt 0:0:38]} Ng6 {[%emt 0:0:53]} 14. Bxd6 {[%emt 0:0:46]} Qxd6 {[%emt 0:0:3]
} 15. Nf3 {[%emt 0:1:26]} Bb7 {[%emt 0:0:46]} 16. Nf5 {[%emt 0:0:0]} Qc7 {[%emt 0:0:4]} 17. Rc1 {[%emt 0:0:51]} Rad8 {[%emt 0:0:5]} 18. Qe2 {[%emt 0:0:31]} Ne4 {[%emt 0:0:17]} 19. Nd2 {[%emt 0:0:54]} Nf6 {[%emt 0:1:4]
} 20. Bb1 {[%emt 0:0:21]} Qd7 {[%emt 0:0:24]} 21. Ng3 {[%emt 0:0:0]} d4 {[%emt 0:0:24]} 22. cxd4 {[%emt 0:1:22]} cxd4 {[%emt 0:0:3]} 23. Bf5 {[%emt 0:1:7]} Qd6 {[%emt 0:1:17]} 24. Bxg6 {[%emt 0:1:15]} hxg6 {[%emt 0:0:18]
} 25. e4 {[%emt 0:0:9]} Qf4 {[%emt 0:0:21]} 26. Qd3 {[%emt 0:0:0]} Nd7 {[%emt 0:0:24]} 27. Ne2 {[%emt 0:0:6]} Qf6 {[%emt 0:0:7]} 28. f4 {[%emt 0:0:11]} Nc5 {[%emt 0:0:3]} 29. Rxc5 {[%emt 0:0:35]} bxc5 {[%emt 0:0:2]
} 30. b3 {[%emt 0:0:19]} Ba6 {[%emt 0:0:44]} 31. Nc4 {[%emt 0:0:0]} Bxc4 {[%emt 0:0:3]} 32. bxc4 {[%emt 0:0:2]} Rb8 {[%emt 0:0:2]} 33. Nc1 {[%emt 0:0:14]} Qxf4 {[%emt 0:0:25]} 34. Nb3 {[%emt 0:0:3]} Qe5 {[%emt 0:0:4]
} 35. Na5 {[%emt 0:0:21]} Rb2 {[%emt 0:0:7]} 36. Qa3 {[%emt 0:0:0]} d3 {[%emt 0:0:46]} 37. Qxd3 {[%emt 0:0:33]} Qd4+ {[%emt 0:0:8]} 38. Qxd4 {[%emt 0:0:2]} cxd4 {[%emt 0:0:1]} 39. Nc6 {[%emt 0:0:36]} d3 {[%emt 0:0:7]
} 40. Rd1 {[%emt 0:0:34]} d2 {[%emt 0:0:3]} 41. Nd4 {[%emt 0:0:0]} Rxe4 {[%emt 0:0:11]} 42. Nf3 {[%emt 0:0:3]} Rxc4 {[%emt 0:0:4]} 43. Nxd2 {[%emt 0:0:20]} Rd4 {[%emt 0:0:8]} 0-1

[Event "FIDE World Rapid-ch Open 2018"]
[White "khayat, Abdullah F"]
[Black "Al Turky, Fahad A"]
[Site "St. Petersburg"]
[Round "6.101"]
[Annotator "NA"]
[Result "0-1"]
[Date "2018.12.27"]
[WhiteElo "1723"]
[BlackElo "1836"]
[PlyCount "98"]
[TimeControl "900+10"]

1. Nf3 {[%emt 0:0:0]} d5 {[%emt 0:0:0]} 2. d4 {[%emt 0:0:0]} Nf6 {[%emt 0:0:0]
} 3. g3 {[%emt 0:0:0]} c5 {[%emt 0:0:0]} 4. c3 {[%emt 0:0:0]} Nc6 {[%emt 0:0:1]} 5. Bg2 {[%emt 0:0:0]} e6 {[%emt 0:1:9]} 6. 0-0 {[%emt 0:0:1]
} Bd6 {[%emt 0:0:5]} 7. Nbd2 {[%emt 0:0:3]} 0-0 {[%emt 0:0:0]} 8. Re1 {[%emt 0:0:6]} h6 {[%emt 0:3:7]} 9. e4 {[%emt 0:0:36]} dxe4 10. Nxe4 {[%emt 0:0:2]} Nxe4 {[%emt 0:0:31]} 11. Rxe4 {[%emt 0:0:1]} b6 {[%emt 0:2:42]
} 12. Re2 {[%emt 0:2:20]} Ba6 {[%emt 0:2:24]} 13. Re1 {[%emt 0:0:0]} Rc8 {[%emt 0:0:8]} 14. Qa4 {[%emt 0:0:9]} Bb7 {[%emt 0:0:37]} 15. Ne5 {[%emt 0:0:34]} Bxe5 {[%emt 0:0:14]} 16. dxe5 {[%emt 0:0:8]} Qc7 {[%emt 0:0:36]
} 17. Bf4 {[%emt 0:0:31]} Rfd8 {[%emt 0:0:14]} 18. Rad1 {[%emt 0:0:10]
} Na5 {[%emt 0:1:15]} 19. b4 {[%emt 0:3:3]} Bxg2 {[%emt 0:0:0]} 20. Kxg2 {[%emt 0:1:9]} cxb4 {[%emt 0:0:40]} 21. cxb4 {[%emt 0:0:9]} Nc4 {[%emt 0:0:57]} 22. Rc1 {[%emt 0:0:44]} Qb7+ {[%emt 0:0:6]} 23. Kg1 {[%emt 0:0:10]
} Nb2 {[%emt 0:0:20]} 24. Qa3 {[%emt 0:1:20]} Rxc1 {[%emt 0:0:0]} 25. Rxc1 {[%emt 0:0:2]} Nd3 {[%emt 0:1:7]} 26. Rd1 {[%emt 0:0:47]} Qf3 {[%emt 0:0:21]} 27. Rf1 {[%emt 0:0:45]} Qg4 {[%emt 0:0:20]} 28. f3 {[%emt 0:1:34]
} Qf5 {[%emt 0:0:21]} 29. Rd1 {[%emt 0:1:44]} g5 {[%emt 0:0:0]} 30. g4 {[%emt 0:0:50]} Qxf4 {[%emt 0:0:27]} 31. Rxd3 {[%emt 0:0:12]} Rxd3 {[%emt 0:0:12]} 32. Qxd3 {[%emt 0:0:2]} Qxe5 {[%emt 0:0:2]} 33. a3 {[%emt 0:0:16]
} Kg7 {[%emt 0:0:20]} 34. h3 Qg3+ {[%emt 0:0:3]} 35. Kf1 {[%emt 0:0:16]
} Qxh3+ {[%emt 0:0:3]} 36. Ke2 {[%emt 0:0:1]} Qh2+ {[%emt 0:0:0]} 37. Kd1 {[%emt 0:0:7]} Qe5 {[%emt 0:0:33]} 38. Kc1 {[%emt 0:1:20]} Qa1+ {[%emt 0:0:6]} 39. Kd2 {[%emt 0:0:18]} Qa2+ {[%emt 0:0:2]} 40. Kc1 {[%emt 0:0:31]
} Qa1+ {[%emt 0:0:5]} 41. Kd2 {[%emt 0:0:1]} Qe5 {[%emt 0:0:0]} 42. Kc1 {[%emt 0:0:3]} Kf6 {[%emt 0:0:28]} 43. Kd2 {[%emt 0:0:16]} Qd5 {[%emt 0:0:2]} 44. Qxd5 {[%emt 0:0:7]} exd5 {[%emt 0:0:0]} 45. Kd3 {[%emt 0:0:2]
} Ke5 {[%emt 0:0:1]} 46. a4 {[%emt 0:0:3]} a6 {[%emt 0:0:13]
} 47. Ke3 {[%emt 0:0:42]} a5 {[%emt 0:0:13]} 48. b5 {[%emt 0:0:5]} f5 {[%emt 0:0:15]
} 49. gxf5 {[%emt 0:0:2] Ke6 } h5 {[%emt 0:0:0]
} 0-1